bitfinex-derivatives/quotes_ETHF0:USTF0_20250602
["timestamp","ask_amount","ask_price","bid_price","bid_amount"]
[1748840342570,0.48138,2491.7,2491.6,11.26179645]
[1748840344666,0.48138,2491.7,2491.6,11.33249434]
[1748840346464,1.38692144,2491.9,2491.6,11.33249434]
[1748840346766,1.59579797,2491.8,2491.6,11.81388434]
[1748840346967,0.48136,2491.8,2491.7,1.3976]
[1748840347167,1.59578955,2491.8,2491.7,1.3976]
[1748840349471,0.48138,2491.7,2491.6,0.07069789]
[1748840349673,0.48138,2491.7,2491.6,10.07069434]
[1748840351368,0.48138,2491.7,2491.6,0.07069789]
[1748840351570,2.2670134,2491.7,2491.6,0.07069789]
[1748840351774,2.4676134,2491.7,2491.6,0.07069789]
[1748840354178,1.3152334,2491.7,2491.6,10.55209434]
[1748840354383,1.3152334,2491.7,2491.6,15.73749434]
[1748840355265,1.3152334,2491.7,2491.6,15.77689434]
[1748840355673,1.3152334,2491.7,2491.6,15.81705434]
[1748840355865,0.2006,2491.7,2491.6,15.81705434]
[1748840358680,0.2006,2491.7,2491.6,5.81705789]
[1748840358875,0.2006,2491.7,2491.6,2.60925789]
[1748840359077,1.31593381,2491.7,2491.6,2.60925789]
[1748840359888,1.31608379,2491.7,2491.6,2.60925789]
[1748840360286,1.31608379,2491.7,2491.6,0.81035789]
[1748840360485,1.31608379,2491.7,2491.6,1.29175789]
[1748840362891,1.31608379,2491.7,2491.6,11.29175434]
[1748840364386,1.31720468,2491.7,2491.6,11.29175434]
[1748840367894,1.31720468,2491.7,2491.6,0.63165789]
[1748840368695,1.31714575,2491.7,2491.6,0.63165789]
[1748840371990,1.31714575,2491.7,2491.6,1.98275789]
[1748840373095,0.2006,2491.7,2491.6,1.98275789]
[1748840373393,1.31716803,2491.7,2491.6,1.98275789]
[1748840376398,1.31716803,2491.7,2491.6,0.15025789]
[1748840376695,1.79854803,2491.7,2491.6,0.15025789]
[1748840377294,2.62086803,2491.7,2491.6,0.15025789]
[1748840377493,2.62084753,2491.7,2491.6,0.15025789]
[1748840377798,2.62084753,2491.7,2491.6,0.63165789]
[1748840378391,2.62084753,2491.7,2491.6,0.15025789]
[1748840378591,3.10222753,2491.7,2491.6,0.15025789]
[1748840380390,2.62084753,2491.7,2491.6,0.15025789]
[1748840381397,2.62084753,2491.7,2491.6,0.63165789]
[1748840382096,2.62056139,2491.7,2491.6,0.63165789]
[1748840382895,2.62056139,2491.7,2491.6,0.15025789]
[1748840383289,3.10194139,2491.7,2491.6,0.15025789]
[1748840384300,2.62056139,2491.7,2491.6,0.63165789]
[1748840384797,3.10194139,2491.7,2491.6,0.15025789]
[1748840386396,1.98568,2491.7,2491.6,0.15025789]
[1748840386595,3.10209938,2491.7,2491.6,0.15025789]
[1748840386890,1.79839938,2491.7,2491.6,0.15025789]
[1748840387094,1.31701938,2491.7,2491.6,0.15025789]
[1748840387699,1.31701938,2491.7,2491.6,0.63165789]
[1748840388094,1.31701938,2491.7,2491.6,10.63165434]
[1748840388598,1.31701938,2491.7,2491.6,11.90085434]
[1748840388796,0.2006,2491.7,2491.6,12.55665434]
[1748840389604,4.54025,2492.4,2491.6,7.07525789]
[1748840389800,1.11625287,2492.3,2491.9,3.2078]
[1748840390093,1.11625287,2492.2,2492.1,0.4813]
[1748840390602,1.11625287,2492.2,2492.1,9.82617501]
[1748840390801,1.3733,2492.4,2492.2,0.48128]
[1748840391099,1.3733,2492.4,2492.3,0.48127]
[1748840391603,2.97035205,2492.4,2492.2,3.2078]
[1748840391802,2.48910205,2492.4,2492.2,13.03395501]
[1748840392500,2.48910205,2492.4,2492.3,0.48127]
[1748840392501,1.11580205,2492.4,2492.3,0.48127]
[1748840392702,1.11580205,2492.4,2492.3,1.78817]
[1748840392897,0.6417,2493.0,2492.3,6.78817]
[1748840393092,2.38433,2493.0,2492.6,0.48119]
[1748840393297,2.38433,2493.0,2492.7,0.48118]
[1748840393702,0.48115,2492.9,2492.7,8.22907296]
[1748840394002,1.2615,2492.8,2492.7,8.71026296]
[1748840394994,0.6417,2493.0,2492.7,8.22907296]
[1748840395196,0.6986,2493.5,2493.3,0.48107]
[1748840395396,21.3019,2493.5,2493.4,0.48105]
[1748840395696,21.3019,2493.5,2493.2,3.21382144]
[1748840395899,21.3019,2493.5,2493.4,0.48105]
[1748840396295,0.69,2493.5,2493.4,0.48105]
[1748840396693,0.69,2493.5,2493.4,8.71012296]
[1748840396906,18.606,2493.7,2493.6,0.48101]
[1748840397105,19.9123,2493.7,2493.6,0.48101]
[1748840397307,1.3063,2493.7,2493.6,0.48101]
[1748840397605,4.5964,2493.8,2493.7,0.481]
[1748840397802,23.2024,2493.8,2493.7,0.481]
[1748840398596,4.5964,2493.8,2493.7,0.481]
[1748840399002,5.9846,2493.8,2493.7,0.481]
[1748840400603,4.5964,2493.8,2493.7,8.71007296]
[1748840400803,3.2078,2493.8,2493.7,8.71007296]
[1748840401009,2.7376,2494.1,2494.0,0.48094]
[1748840402206,3.2078,2494.5,2493.9,3.2078]
[1748840402509,1.9962,2494.7,2494.4,0.48085]
[1748840402809,18.589,2494.6,2494.4,0.48085]
[1748840403010,18.589,2494.6,2494.0,0.6434]
[1748840403011,3.2078,2494.5,2494.0,0.6434]
[1748840403306,0.48096,2493.9,2493.6,0.48101]
[1748840403511,3.68878,2493.8,2493.5,0.48102]
[1748840403701,0.683,2493.7,2493.6,41.28101]
[1748840404211,0.683,2493.7,2493.6,0.48101]
[1748840405116,7.74566,2494.4,2493.7,0.481]
[1748840405414,18.612,2494.3,2494.1,0.4809]
[1748840405613,7.2648,2494.4,2494.2,0.4809]
[1748840405814,22.667,2494.4,2494.3,0.48088]
[1748840406719,23.14786,2494.4,2494.2,0.48089]
[1748840406910,23.14786,2494.4,2494.1,0.48091]
[1748840407216,23.14786,2494.4,2494.0,9.67277085]
[1748840407416,23.14786,2494.4,2494.1,0.4809]
[1748840407708,3.6887,2494.3,2494.0,8.78070085]
[1748840407913,0.48091,2494.2,2494.0,0.07069789]
[1748840408113,3.2078,2494.3,2494.0,0.07069789]
[1748840408312,0.48092,2494.1,2494.0,0.07069789]
[1748840410014,0.48091,2494.2,2494.0,0.07069789]
[1748840410511,0.48092,2494.1,2494.0,0.07069789]
[1748840411816,3.2078,2494.3,2493.3,44.856]
[1748840412118,0.48099,2493.8,2493.5,0.48103]
[1748840412314,0.6379,2493.7,2493.5,0.48103]
[1748840413314,1.1189,2493.7,2493.5,0.48103]
[1748840413818,1.1189,2493.7,2493.4,0.48104]
[1748840414217,0.6379,2493.7,2493.5,0.48102]
[1748840414413,18.585,2493.6,2493.5,0.48102]
[1748840414712,19.06602,2493.6,2493.1,6.0919]
[1748840414915,19.06603,2493.6,2493.2,11.4428944]
[1748840415111,0.6931,2493.5,2493.3,0.48105]
[1748840415318,0.6931,2493.5,2493.4,0.48105]
[1748840415810,0.6931,2493.5,2493.4,8.71012296]
[1748840416213,0.6931,2493.5,2493.4,8.22907296]
[1748840416414,0.48106,2493.4,2493.2,3.69491144]
[1748840416716,0.6931,2493.5,2493.2,11.4428944]
[1748840416915,0.48107,2493.4,2493.2,11.4428944]
[1748840417318,0.48107,2493.4,2493.2,11.9239844]
[1748840417612,1.17415,2493.5,2493.2,11.9239844]
[1748840418213,0.6931,2493.5,2493.2,8.2350944]
[1748840418418,0.48107,2493.3,2493.2,0.00602144]
[1748840418816,3.68887,2493.3,2493.2,0.00602144]
[1748840419819,4.79135467,2493.3,2493.2,0.00602144]
[1748840420624,23.36935467,2493.3,2493.2,0.00602144]
[1748840421016,24.47228388,2493.3,2493.2,0.00602144]
[1748840421216,5.89428388,2493.3,2493.2,0.00602144]
[1748840421523,24.47528388,2493.3,2493.2,0.00602144]
[1748840421723,23.37279921,2493.3,2493.2,0.00602144]
[1748840425526,23.3622803,2493.3,2493.2,0.00602144]
[1748840425727,1.1044103,2493.3,2493.2,0.00602144]
[1748840425925,20.1554803,2493.3,2493.2,0.00602144]
[1748840426229,19.6734103,2493.3,2493.2,0.00602144]
[1748840426430,20.1544803,2493.3,2493.2,0.00602144]
[1748840426729,20.1544803,2493.3,2493.2,0.65532144]
[1748840427223,1.5854803,2493.3,2493.2,0.65532144]
[1748840427428,20.1504803,2493.3,2493.2,0.65532144]
[1748840428135,1.1044103,2493.3,2493.2,0.65532144]
[1748840428428,3.2078,2493.6,2493.5,0.48103]
[1748840428631,0.6379,2493.7,2493.5,0.48103]
[1748840428931,19.2019,2493.7,2493.5,8.71010296]
[1748840429435,1.10442116,2493.6,2493.5,9.54237296]
[1748840429723,1.10442116,2493.6,2493.5,10.02340296]
[1748840430522,22.90614,2494.0,2493.5,9.54237296]
[1748840430732,22.4252,2494.0,2493.7,0.48098]
[1748840431032,22.4252,2494.0,2493.8,1.79427]
[1748840431233,21.7718,2494.0,2493.8,1.79427]
[1748840431730,3.2078,2494.0,2493.9,0.48096]
[1748840432032,3.2078,2494.0,2493.9,2.50276]
[1748840432220,7.90061492,2494.4,2494.3,0.48088]
[1748840432934,2.45262,2494.6,2494.3,0.48088]
[1748840433131,1.10484224,2494.5,2494.4,1.3862]
[1748840433331,1.10484224,2494.5,2494.4,2.0211]
[1748840433731,1.58568224,2494.5,2494.4,2.0211]
[1748840434029,1.10484224,2494.5,2494.4,2.50196]
[1748840434229,19.04381,2494.7,2494.4,2.50196]
[1748840434431,18.563,2494.7,2494.4,2.50196]
[1748840434930,19.8731,2494.7,2494.4,2.0211]
[1748840435130,19.8731,2494.7,2494.4,2.50195]
[1748840435426,19.8731,2494.7,2494.4,2.0211]
[1748840435628,19.8711,2494.7,2494.5,0.48083]
[1748840435827,0.6683,2494.8,2494.6,0.48082]
[1748840436128,19.2293,2494.8,2494.6,0.48082]
[1748840436331,19.2293,2494.8,2494.6,8.69902119]
[1748840437125,19.2293,2494.8,2494.6,8.70989296]
[1748840437328,19.2293,2494.8,2494.6,8.22907296]
[1748840437628,20.5394,2494.8,2494.6,8.70989296]
[1748840437831,20.5394,2494.8,2494.6,8.22907296]
[1748840437832,21.02018,2494.8,2494.6,8.22907296]
[1748840438028,1.9784,2494.8,2494.7,0.4808]
[1748840438228,3.2078,2495.3,2494.9,0.48076]
[1748840438428,3.2078,2495.3,2494.8,1.334]
[1748840438637,1.3905,2495.2,2494.9,0.48075]
[1748840438934,1.3905,2495.2,2494.9,8.22907296]
[1748840439132,22.599,2495.1,2494.5,0.00602144]
[1748840439435,3.68857,2494.9,2494.5,0.48685144]
[1748840439639,1.3905,2494.8,2494.5,8.7159244]
[1748840439831,1.3905,2494.8,2494.6,0.48082]
[1748840440132,18.559,2494.8,2494.6,0.48082]
[1748840440434,18.559,2494.8,2494.6,8.70989296]
[1748840440737,18.559,2494.8,2494.6,8.22907296]
[1748840441129,18.559,2494.8,2494.6,8.70989296]
[1748840441323,0.646,2494.9,2494.6,8.70989296]
[1748840441536,0.646,2494.9,2494.7,1.3568]
[1748840442232,0.646,2494.9,2494.7,9.58587296]
[1748840442536,0.646,2494.9,2494.7,10.06667296]
[1748840442838,0.646,2494.9,2494.7,9.58587296]
[1748840443030,1.12676,2494.9,2494.7,9.58587296]
[1748840443237,0.48078,2494.8,2494.7,8.22907296]
[1748840443536,0.48078,2494.8,2494.5,0.00602144]
[1748840443738,1.81188,2494.8,2494.5,8.2350944]
[1748840443938,0.48082,2494.6,2494.5,0.00602144]
[1748840450344,0.48082,2494.6,2494.5,0.07671933]
[1748840453739,0.48082,2494.6,2493.8,3.2078]
[1748840453740,0.48096,2493.9,2493.8,3.2078]
[1748840453940,0.48101,2493.6,2493.4,0.07956]
[1748840454140,0.48103,2493.5,2493.4,8.30863296]
[1748840454839,0.48103,2493.6,2493.4,8.30863296]
[1748840455044,0.48103,2493.6,2493.4,9.64773296]
[1748840456041,0.48702144,2493.7,2493.4,10.12878296]
[1748840456246,0.48102,2493.6,2493.4,10.33163296]
[1748840456441,1.86152144,2493.7,2493.4,10.81267296]
[1748840456947,0.48102,2493.6,2493.4,10.33163296]
[1748840457946,1.86153144,2493.7,2493.4,10.81268296]
[1748840458244,0.48703144,2493.7,2493.4,10.81268296]
[1748840458649,0.48702144,2493.7,2493.4,10.81267296]
[1748840459652,0.48102,2493.6,2493.4,10.33163296]
[1748840460250,0.48103,2493.5,2493.4,10.33163296]
[1748840460446,0.48103,2493.6,2493.4,8.99253296]
[1748840460647,0.48103,2493.5,2493.4,8.99253296]
[1748840461153,0.48103,2493.6,2493.4,8.99253296]
[1748840461346,0.48103,2493.6,2493.4,9.47358296]
[1748840461555,0.48103,2493.6,2493.4,8.99253296]
[1748840461755,0.48103,2493.6,2493.4,10.34713296]
[1748840462950,0.00602144,2493.7,2493.4,10.34713296]
[1748840463148,18.56402144,2493.7,2493.6,0.48101]
[1748840463350,0.00602144,2493.7,2493.6,0.48101]
[1748840463650,0.00602144,2493.7,2493.6,8.71008296]
[1748840464649,0.00602144,2493.7,2493.6,8.22907296]
[1748840464855,0.00602144,2493.7,2493.6,13.71008296]
[1748840465448,0.00602144,2493.7,2493.6,8.71008296]
[1748840465945,3.2078,2494.3,2493.7,1.20249]
[1748840466248,19.66208541,2494.2,2494.1,0.4809]
[1748840466547,3.2078,2494.3,2494.2,0.4809]
[1748840466749,3.2078,2494.3,2493.9,3.2078]
[1748840466750,3.2078,2494.3,2494.1,0.4809]
[1748840467049,3.68868,2494.3,2494.1,0.4809]
[1748840467251,3.68868,2494.3,2494.1,8.70997296]
[1748840467452,3.2078,2494.3,2494.1,8.70997296]
[1748840468044,3.2078,2494.3,2494.2,1.3615]
[1748840468244,0.4809,2494.2,2494.1,8.22907296]
[1748840468443,0.48098,2493.8,2493.5,0.48102]
[1748840468645,0.48098,2493.8,2493.5,1.76662]
[1748840468843,0.48097,2493.9,2493.6,0.48101]
[1748840469251,5.2429,2494.0,2493.5,1.2856]
[1748840469442,0.48103,2493.5,2493.4,0.15025789]
[1748840469752,19.03903,2493.5,2493.4,0.15025789]
[1748840469954,20.14351019,2493.5,2493.4,0.15025789]
[1748840470541,20.29868019,2493.5,2493.4,0.15025789]
[1748840470746,20.77971019,2493.5,2493.4,0.15025789]
[1748840471651,20.29868019,2493.5,2493.4,0.15025789]
[1748840471850,20.77971019,2493.5,2493.4,0.15025789]
[1748840472047,22.09121019,2493.5,2493.4,0.15025789]
[1748840472245,20.98673,2493.5,2493.4,0.15025789]
[1748840472446,22.09082539,2493.5,2493.4,0.15025789]
[1748840475258,22.41006562,2493.5,2493.4,0.15025789]
[1748840475446,22.41006562,2493.5,2493.4,0.11009789]
[1748840475650,22.41006562,2493.5,2493.4,0.07069789]
[1748840476342,22.09082539,2493.5,2493.4,0.07069789]
[1748840477159,1.9477,2493.5,2493.4,0.07069789]
[1748840477355,19.66419441,2493.5,2493.4,0.07069789]
[1748840477552,19.66419441,2493.5,2493.4,1.38039789]
[1748840477857,18.56,2493.6,2493.4,10.09052085]
[1748840478751,18.56,2493.6,2493.5,0.04016]
[1748840479252,19.664623,2493.6,2493.5,9.57893296]
[1748840479952,20.145633,2493.6,2493.5,9.61833296]
[1748840480952,20.145633,2493.6,2493.5,8.30863296]
[1748840481157,21.521233,2493.6,2493.5,8.30863296]
[1748840481947,24.729033,2493.6,2493.5,8.30863296]
[1748840482959,24.729033,2493.6,2493.5,0.07956]
[1748840486061,24.73110661,2493.6,2493.5,0.07956]
[1748840488668,28.76710661,2493.6,2493.5,0.07956]
[1748840492861,28.28609661,2493.6,2492.7,3.68897]
[1748840493062,3.2078,2493.3,2492.7,3.68897]
[1748840493266,0.48113,2493.1,2492.8,1.74657]
[1748840493570,0.48115,2492.9,2492.8,1.2654]
[1748840493770,0.48114,2493.0,2492.8,9.49447296]
[1748840494967,1.81934144,2493.1,2492.8,9.97564296]
[1748840495169,0.48714144,2493.1,2492.8,9.97562296]
[1748840495358,0.00602144,2493.1,2492.9,0.48115]
[1748840495566,0.00602144,2493.1,2493.0,1.2654]
[1748840495767,19.67323583,2493.1,2493.0,1.2654]
[1748840495964,19.67323583,2493.1,2493.0,9.49447296]
[1748840496566,1.11323583,2493.1,2493.0,9.49447296]
[1748840496869,19.67323583,2493.1,2493.0,10.67410296]
[1748840497163,0.00602144,2493.1,2493.0,13.88190296]
[1748840498159,1.11440004,2493.1,2493.0,13.88190296]
[1748840499561,2.22385437,2493.1,2493.0,13.88190296]
[1748840499963,2.22385437,2493.1,2493.0,10.19297296]
[1748840500166,1.11547577,2493.1,2493.0,10.19297296]
[1748840501177,1.59658577,2493.1,2493.0,10.19297296]
[1748840501471,1.59658577,2493.1,2493.0,0.6985]
[1748840503674,1.5968239,2493.1,2493.0,0.6985]
[1748840504875,2.4712139,2493.1,2492.7,0.00602144]
[1748840505071,2.4712139,2493.1,2492.7,8.2350944]
[1748840505371,0.48116,2492.9,2492.7,8.2350944]
[1748840505565,1.10969246,2492.8,2492.7,8.2350944]
[1748840507972,1.10969246,2492.8,2492.7,8.7162844]
[1748840508271,1.10942056,2492.8,2492.7,8.7162844]
[1748840508974,0.48714144,2493.1,2492.8,0.48116]
[1748840509271,1.10941604,2493.0,2492.8,1.74866]
[1748840509471,1.10941604,2492.9,2492.8,9.97773296]
[1748840510066,1.10941604,2493.0,2492.9,0.48115]
[1748840510263,18.56602144,2493.1,2492.9,4.95645]
[1748840510475,18.56602144,2493.1,2492.9,13.18552296]
[1748840510967,1.10950306,2493.0,2492.9,13.18552296]
[1748840512569,1.11008742,2493.0,2492.9,13.18552296]
[1748840512872,0.00602144,2493.1,2493.0,0.48113]
[1748840513072,0.00602144,2493.1,2493.0,1.77803]
[1748840513377,1.11613076,2493.1,2493.0,10.00710296]
[1748840513869,0.48117,2492.8,2492.7,0.07671933]
[1748840514177,4.79907932,2492.8,2492.7,0.07671933]
[1748840515071,6.16157932,2492.8,2492.7,0.07671933]
[1748840515472,8.6043,2492.8,2491.8,3.2078]
[1748840515675,0.48129,2492.2,2491.9,1.3613]
[1748840515875,18.56,2492.3,2491.9,1.3613]
[1748840516071,0.48132,2492.0,2491.9,9.59037296]
[1748840516271,0.48132,2492.1,2491.9,9.59037296]
[1748840516477,1.11010932,2492.0,2491.9,9.59037296]
[1748840516678,0.48132,2492.1,2491.9,9.59037296]
[1748840517179,1.8438,2492.2,2491.9,9.59037296]
[1748840517580,1.10760935,2492.1,2491.9,9.59037296]
[1748840517777,0.48132,2492.0,2491.9,9.59037296]
[1748840518269,0.48132,2492.0,2491.8,3.21382144]
[1748840518474,1.78522,2492.0,2491.8,11.4428944]
[1748840519479,0.48134,2491.9,2491.8,11.4428944]
[1748840519776,0.48148,2491.2,2490.8,3.68935]
[1748840519978,19.0425,2491.1,2490.8,4.5371]
[1748840520178,18.561,2491.1,2490.8,12.76617296]
[1748840520587,18.561,2491.1,2490.8,13.24772296]
[1748840521080,19.8501,2491.1,2490.8,13.24772296]
[1748840521276,20.3316,2491.1,2490.8,13.24772296]
[1748840522179,20.3316,2491.1,2490.9,0.48153]
[1748840522486,18.564,2491.1,2491.0,0.48152]
[1748840522885,18.564,2491.1,2491.0,8.71059296]
[1748840523087,18.564,2491.1,2491.0,10.07469296]
[1748840523588,0.00602144,2491.2,2491.1,0.4815]
[1748840523780,5.59485795,2492.1,2491.7,0.48137]
[1748840523981,0.48136,2491.8,2491.7,3.2078]
[1748840524182,0.48136,2491.8,2491.7,3.42832367]
[1748840524579,0.48141,2491.6,2491.4,5.3863]
[1748840524886,0.48142,2491.5,2491.4,7.46432367]
[1748840525076,1.2766,2491.5,2491.4,7.46432367]
[1748840525276,1.75802,2491.5,2491.4,7.46432367]
[1748840525481,1.75802,2491.5,2491.4,3.42832367]
[1748840525986,1.2766,2491.5,2491.4,3.42832367]
[1748840526485,1.9629,2491.5,2491.4,3.42832367]
[1748840526780,0.00602144,2491.9,2491.4,9.63191367]
[1748840526986,0.00602144,2491.9,2491.8,0.48136]
[1748840527185,0.00602144,2491.9,2491.8,3.90968367]
[1748840527488,0.00602144,2491.9,2491.6,3.2078]
[1748840527787,0.48736144,2491.9,2491.6,3.90971367]
[1748840527981,1.83477144,2491.9,2491.6,3.42832367]
[1748840528389,0.48136,2491.8,2491.6,3.42832367]
[1748840528697,1.3474,2491.7,2491.5,0.48142]
[1748840529085,1.3474,2491.7,2491.5,3.90974367]
[1748840529488,1.3474,2491.7,2491.5,3.42832367]
[1748840529788,1.3474,2491.7,2491.5,3.90974367]
[1748840529988,1.3474,2491.7,2491.5,3.42832367]
[1748840530385,19.9144,2491.7,2491.5,3.42832367]
[1748840530990,1.3474,2491.7,2491.5,3.90974367]
[1748840531190,18.567,2491.7,2491.6,3.2078]
[1748840531489,18.567,2491.7,2491.6,4.4834]
[1748840532181,1.14216,2491.8,2491.6,4.4834]
[1748840532379,21.08046,2491.8,2491.6,4.4834]
[1748840532583,20.5991,2491.8,2491.6,4.4834]
[1748840532783,21.08048,2491.8,2491.6,4.4834]
[1748840533394,0.48138,2491.7,2491.6,4.4834]
[1748840533594,21.08047,2491.8,2491.6,4.4834]
[1748840533895,0.00602144,2491.9,2491.6,7.91172367]
[1748840534190,0.00602144,2491.9,2491.8,0.48136]
[1748840534494,0.48736144,2491.9,2491.7,1.76657]
[1748840534697,0.48136,2491.8,2491.7,4.71352367]
[1748840534887,0.48136,2491.8,2491.7,3.42832367]
[1748840535792,0.48737144,2491.9,2491.7,3.42832367]
[1748840536192,0.48136,2491.8,2491.7,3.42832367]
[1748840536582,1.85176,2491.8,2491.7,3.42832367]
[1748840538592,2.0588,2491.8,2491.4,1.2852]
[1748840538794,0.48141,2491.6,2491.4,3.42832367]
[1748840540094,1.1344,2491.7,2491.4,5.23556367]
[1748840540593,1.1344,2491.7,2491.4,4.75412367]
[1748840541598,0.4814,2491.6,2491.4,4.75412367]
[1748840543191,0.48142,2491.5,2491.4,4.75412367]
[1748840543400,0.48142,2491.5,2491.4,3.42832367]
[1748840543996,0.48141,2491.6,2491.4,3.42832367]
[1748840544192,19.221,2491.7,2491.4,4.74242367]
[1748840544394,18.568,2491.7,2491.4,4.74242367]
[1748840544592,0.4814,2491.6,2491.4,4.74242367]
[1748840544992,1.09985425,2491.6,2491.4,5.22385367]
[1748840545192,1.09985425,2491.6,2491.5,0.48142]
[1748840545393,0.2005,2491.6,2491.5,2.42922]
[1748840545594,0.2005,2491.6,2491.5,5.85754367]
[1748840546195,0.2005,2491.6,2491.5,10.85754367]
[1748840547801,0.2005,2491.6,2491.5,14.89254367]
[1748840548804,0.2005,2491.6,2491.5,5.37612367]
[1748840548996,0.6819,2491.6,2491.5,5.37612367]
[1748840549197,0.6819,2491.6,2491.5,3.42832367]
[1748840549801,1.78317867,2491.6,2491.5,3.42832367]
[1748840550302,0.2005,2491.6,2491.5,3.42832367]
[1748840550500,0.2005,2491.6,2491.5,3.90974367]
[1748840551201,0.2005,2491.6,2491.5,4.55294367]
[1748840553606,0.2005,2491.6,2491.5,7.76074367]
[1748840554103,0.2005,2491.6,2491.5,4.55294367]
[1748840554499,0.2005,2491.6,2491.5,7.76074367]
[1748840554695,0.00602144,2491.9,2491.8,0.48136]
[1748840554899,0.17915675,2492.1,2492.0,0.48132]
[1748840555201,0.05262333,2492.4,2492.3,0.48126]
[1748840555405,3.95231658,2492.9,2492.8,0.48117]
[1748840555607,7.16011658,2493.1,2492.9,0.48114]
[1748840555807,4.5522,2493.1,2492.9,0.48114]
[1748840556103,5.03332,2493.1,2492.8,0.00602144]
[1748840556305,4.5522,2493.1,2492.9,0.48114]
[1748840556906,4.5522,2493.1,2492.8,1.28922144]
[1748840557499,4.5522,2493.1,2492.9,0.48114]
[1748840557697,1.3444,2493.1,2493.0,0.48113]
[1748840557901,19.9084,2493.1,2493.0,0.48113]
[1748840558604,1.3444,2493.1,2492.9,0.48114]
[1748840559304,1.3444,2493.1,2493.0,0.48113]
[1748840560405,1.3444,2493.1,2492.9,0.48114]
[1748840561007,0.00602144,2493.2,2493.1,0.48111]
[1748840562103,0.6631,2493.6,2493.5,0.48103]
[1748840562506,1.17445,2493.9,2493.7,0.48098]
[1748840562697,1.3085,2493.8,2493.7,0.48099]
[1748840562896,1.3529,2493.9,2493.8,0.48097]
[1748840563303,1.3529,2493.9,2493.7,0.48098]
[1748840563603,2.6614,2493.9,2493.8,0.48097]
[1748840563906,2.6614,2493.9,2493.5,1.37]
[1748840563907,3.14235,2493.9,2493.6,0.481]
[1748840564107,0.48098,2493.8,2493.5,1.37]
[1748840564306,1.3085,2493.8,2493.6,0.48101]
[1748840564897,0.48103,2493.5,2493.4,3.2078]
[1748840565203,1.3085,2493.8,2493.4,3.2078]
[1748840565506,1.3085,2493.8,2493.4,3.68885]
[1748840565711,0.481,2493.7,2493.4,3.68885]
[1748840566310,1.3136,2493.7,2493.4,3.2078]
[1748840566606,0.48102,2493.6,2493.4,3.2078]
[1748840566806,1.79463,2493.5,2493.3,40.8]
[1748840567006,2.46703,2493.5,2493.3,40.8]
[1748840567208,2.46703,2493.5,2493.2,0.6502]
[1748840567402,2.46703,2493.5,2493.2,1.13128]
[1748840567602,2.46703,2493.5,2493.2,41.93128]
[1748840567799,1.986,2493.5,2493.2,41.93128]
[1748840568005,1.986,2493.5,2493.4,3.2078]
[1748840568409,2.46703,2493.5,2493.4,3.2078]
[1748840569007,2.46703,2493.5,2493.2,1.13128]
[1748840569405,1.986,2493.5,2493.1,48.0408]
[1748840569612,0.48108,2493.3,2493.1,44.0078]
[1748840569809,2.42879,2493.2,2493.1,3.2078]
[1748840571309,1.9477,2493.2,2493.1,3.2078]
[1748840571909,2.42879,2493.2,2493.1,3.2078]
[1748840572408,1.9477,2493.2,2493.1,3.2078]
[1748840572609,0.6867,2493.2,2493.1,3.2078]
[1748840572801,19.2284,2493.5,2493.1,3.2078]
[1748840573009,19.70945,2493.5,2493.4,3.2078]
[1748840573211,19.70945,2493.5,2493.4,3.27849789]
[1748840573408,20.98205,2493.5,2493.4,3.27849789]
[1748840574315,20.98205,2493.5,2493.4,0.07069789]
[1748840575109,2.42605,2493.5,2493.4,0.07069789]
[1748840577613,3.2078,2493.7,2493.4,0.07069789]
[1748840577812,0.48103,2493.5,2493.4,0.07069789]
[1748840580514,2.42113,2493.5,2493.4,0.07069789]
[1748840581323,3.49557987,2493.5,2493.4,0.07069789]
[1748840581515,3.49618183,2493.5,2493.4,0.07069789]
[1748840582021,22.05018183,2493.5,2493.4,0.07069789]
[1748840583623,27.05018183,2493.5,2493.4,0.07069789]
[1748840584017,0.48115,2492.9,2492.8,0.00602144]
[1748840587621,0.48122,2492.5,2492.4,3.2078]
[1748840587821,0.48126,2492.3,2492.2,0.6658]
[1748840588023,0.4813,2492.1,2492.0,3.2078]
[1748840588825,0.00602144,2492.3,2492.0,3.2078]
[1748840589026,19.04229144,2492.3,2492.1,1.9594]
[1748840589225,0.48128,2492.2,2492.1,1.9594]
[1748840589525,0.48729144,2492.3,2492.1,1.9594]
[1748840589923,0.00602144,2492.3,2492.1,1.9594]
[1748840590244,0.00602144,2492.3,2492.2,1.3709]
[1748840590528,0.00602144,2492.3,2492.2,1.85218]
[1748840590917,0.00602144,2492.3,2492.2,1.3709]
[1748840591428,0.48728144,2492.3,2492.2,1.3709]
[1748840591729,0.48128,2492.2,2492.1,0.6658]
[1748840591926,0.48128,2492.2,2492.1,2.0367]
[1748840592624,0.48729144,2492.3,2492.1,2.0367]
[1748840592822,0.00602144,2492.3,2492.1,2.0367]
[1748840593025,0.00602144,2492.3,2492.2,1.3709]
[1748840593417,0.00602144,2492.3,2492.2,1.85218]
[1748840594729,0.00602144,2492.3,2492.2,1.3709]
[1748840594925,0.48728144,2492.3,2492.2,1.3709]
[1748840595123,0.00602144,2492.3,2492.2,1.85218]
[1748840595523,0.00602144,2492.3,2492.2,1.3709]
[1748840595726,0.48728144,2492.3,2492.2,1.3709]
[1748840597931,0.48128,2492.2,2492.1,0.6658]
[1748840598124,0.48128,2492.2,2492.1,1.9785]
[1748840598521,0.48729144,2492.3,2492.1,5.1863]
[1748840598722,0.48729144,2492.3,2492.2,1.3127]
[1748840599430,0.48729144,2492.3,2492.2,1.38339789]
[1748840601526,0.48729144,2492.3,2492.2,4.59119789]
[1748840603324,0.00602144,2492.3,2492.2,4.59119789]
[1748840603737,0.48728144,2492.3,2492.2,4.59119789]
[1748840606335,0.48728144,2492.3,2492.2,3.27849789]
[1748840608224,1.77898144,2492.3,2492.2,3.27849789]
[1748840608427,1.77898144,2492.3,2492.2,0.07069789]
[1748840608627,2.85631967,2492.3,2492.2,0.07069789]
[1748840608826,7.85631967,2492.3,2492.2,0.07069789]
[1748840609030,0.48132,2492.0,2491.9,3.2078]
[1748840609431,0.48134,2491.9,2491.8,0.00602144]
[1748840609930,20.11758639,2491.9,2491.8,0.00602144]